Cogmind - Beta 14 @@@ ROGUE MODE // 2024.08.08 @ 14:13:36 Player: cleoBot Result: Core destroyed Performance ------------- Evolutions (0) 0 Regions Visited (1) 200 Robots Destroyed (25) 125 Value Destroyed (500) 500 Prototype IDs (0) 0 Alien Tech Used (0) 0 Bonus (0) 0 TOTAL SCORE: 825 Bonus ------- None Cogmind --------- Core Integrity 0/250 Matter 208/300 Energy 230/250 System Corruption 0% Temperature Critical (543) Movement Treading (320) Ox2 Location -10/Materials Parts ------- > --- POWER (1) -------- Ion Engine > --- PROPULSION (2) --- Light Treads Light Treads > --- UTILITY (2) ------ Huge Storage Unit Targeting Computer > --- WEAPON (2) ------- Small Laser Beam Cannon > --- INVENTORY (25) --- Flight Unit Medium Matter Pod (100) Transport Network Coupler ECM Suite Peak State ------------ > --- POWER ------------ Ion Engine > --- PROPULSION ------- Light Treads Light Treads > --- UTILITY ---------- Small Storage Unit Large Battery > --- WEAPON ----------- Medium Laser Assault Rifle > --- INVENTORY -------- (None) [Rating: 7] Favorites ----------- Power Ion Engine Engine Ion Engine Propulsion Flight Unit Treads Light Treads Leg Aluminum Leg Flight Unit Flight Unit Utility Targeting Computer Storage Huge Storage Unit Processor Targeting Computer Weapon Small Laser Energy Gun Small Laser Energy Cannon Beam Cannon Ballistic Gun Assault Rifle Build | -11 -10 ------- Run | Yrd Mat Slots Evolved . | . . Power . | . . Propulsion . | . . Utility . | . . Weapon . | . . Parts Attached 25 | 8 17 Power 6 | 3 3 Engine 6 | 3 3 Core . | . . Reactor . | . . Propulsion 10 | 2 8 Treads 5 | 2 3 Leg 3 | . 3 Wheel . | . . Hover . | . . Flight 2 | . 2 Utility 4 | 1 3 Device . | . . Storage 3 | 1 2 Processor 1 | . 1 Hackware . | . . Protection . | . . Artifact . | . . Weapon 5 | 2 3 Energy Gun 2 | 1 1 Energy Cannon 1 | . 1 Ballistic Gun 2 | 1 1 Ballistic Cannon . | . . Launcher . | . . Special Weapon . | . . Impact Weapon . | . . Slashing Weapon . | . . Piercing Weapon . | . . Special Melee Weapon . | . . Unidentified Prototypes . | . . Parts Lost 4 | . 4 Power . | . . Propulsion 1 | . 1 Utility . | . . Weapon 3 | . 3 Highest Loss Streak 2 | . 2 To Critical Strikes . | . . Average Slot Usage (%) 86 | . 86 Engine 14 | . 14 Treads 8 | . 8 Leg 6 | . 6 Flight 10 | . 10 Storage 15 | . 15 Processor 10 | . 10 Energy Gun 11 | . 11 Ballistic Gun 6 | . 6 Peak Build Rating 7 | 6 7 Average Rating 6 | 4 6 On Entrance 3 | . 6 Naked Turns . | . . Heaviest Build 89 | 12 89 Greatest Support 40 | 40 40 Greatest Overweight (x) 10 | . 10 Average Overweight (x) 2 | . 2 Largest Inventory Capacity 25 | 8 25 Average Capacity 18 | 6 19 Most Carried 7 | 5 7 Average Carried 2 | 1 2 Final Capacity 25 | 8 25 Final Carried 4 | . 4 Class Distribution -------------------- 56% | Scavenger-Mutant 43% | Mutant Dominant Class ---------------- Scavenger-Mutant | -10/Materials Resources | -11 -10 ----------- Run | Yrd Mat Matter Collected 580 | 209 371 Remotely . | . . Salvage Created 819 | . 819 Parts 54 | . 54 Haulers Intercepted 1 | . 1 Recyclers Shooed 4 | . 4 Parts Field Recycled . | . . Retrieved Matter . | . . Parts Self-Destructed . | . . Prevented . | . . Kills | -11 -10 ------- Run | Yrd Mat Combat Hostiles Destroyed 18 | . 18 Guns 16 | . 16 Cannons 1 | . 1 Classes Destroyed 7 | . 7 Worker 2 | . 2 Builder 1 | . 1 Hauler 1 | . 1 Recycler 2 | . 2 Watcher 1 | . 1 Swarmer 8 | . 8 Grunt 10 | . 10 Best Kill Streak 4 | . 4 Combat Bots Only 3 | . 3 Max Kills in Single Turn 1 | . 1 Gunslinging . | . . Exploded . | . . Melee . | . . Uniques/NPCs Destroyed . | . . Combat | -11 -10 -------- Run | Yrd Mat Hostile Shots Fired 173 | . 173 Missed 59 | . 59 Damage Taken 1174 | . 1174 Core 281 | . 281 Absorbed by Shields . | . . Core Remaining (%) 100 | 100 . Volleys Fired 120 | 1 119 Largest 2 | 2 2 Hottest 100 | 70 100 Shots Fired 178 | 2 176 Gun 163 | 2 161 Cannon 15 | . 15 Launcher . | . . Special . | . . Kinetic 90 | 1 89 Thermal 88 | 1 87 Explosive . | . . Electromagnetic . | . . Robot Hit Streak 9 | 1 9 Robot Miss Streak 5 | 1 5 Penetration Max . | . . Secondary Targets 3 | . 3 Max Gunslinging Chain 1 | . 1 Shots Hit Robots 109 | 1 108 Core Hits 42 | . 42 Critical Kills . | . . Critical Parts Destroyed . | . . Critical Strikes 3 | . 3 Burn 3 | . 3 Melee Attacks . | . . Impact . | . . Slashing . | . . Piercing . | . . Sneak Attacks . | . . Combat Hostiles . | . . Follow-up Attacks . | . . Damage Inflicted 1247 | 14 1233 Guns 1090 | 14 1076 Cannons 157 | . 157 Explosions . | . . Melee . | . . Ramming . | . . Kinetic 554 | 14 540 Thermal 693 | . 693 Explosive . | . . Electromagnetic . | . . Impact . | . . Slashing . | . . Piercing . | . . Highest Corruption . | . . Average Corruption . | . . Corruption Purged . | . . Corruption Blocked . | . . Overload Shots . | . . Overflow Damage . | . . Projectiles . | . . Explosions . | . . Melee . | . . Knockbacks . | . . Impact . | . . Kinetic . | . . Secondary . | . . Self-Inflicted Damage . | . . Shots . | . . Rammed . | . . Targets Rammed . | . . Kicked . | . . Crushed . | . . Highest Temperature 543 | 9 543 Average Temperature 86 | 6 87 Received Heat Transfer 396 | . 396 Effects 4 | . 4 Shutdowns 1 | . 1 Interference 1 | . 1 Matter Decay 1 | . 1 Damage (core) 1 | . 1 Siege Activations . | . . Robots Corrupted . | . . Combat Hostiles . | . . Parts Fried . | . . Impact Corruptions . | . . Robots Melted 1 | . 1 Combat Hostiles 1 | . 1 Parts Melted 1 | . 1 Heat Transferred 2052 | . 2052 Parts Sabotaged . | . . Parts Stolen . | . . Parts Stripped . | . . Power Chain Reactions . | . . Alert | -11 -10 ------- Run | Yrd Mat Peak Influence 192 | . 192 Initial . | . . Average 57 | . 59 Maximum Alert Level . | . . Low Security (%) 100 | 100 100 Level 1 . | . . Level 2 . | . . Level 3 . | . . Level 4 . | . . Level 5 . | . . High Security . | . . Max Security . | . . Squads Dispatched 3 | . 3 Investigation 2 | . 2 Extermination . | . . Reinforcement 1 | . 1 Assault . | . . Garrison . | . . Intercept . | . . Searches Triggered . | . . Construction Impeded . | . . Haulers Reinforced . | . . Active Scanning Responses . | . . Cargo Convoy Interrupts . | . . Stealth | -11 -10 --------- Run | Yrd Mat Distress Signals 1 | . 1 Communications Jammed . | . . Distress Signals . | . . Times Spotted 27 | . 27 Peak Tracking Total 4 | . 4 Tactical Retreats 1 | . 1 Traps | -11 -10 ------- Run | Yrd Mat Traps Triggered 2 | . 2 Indirectly . | . . Trap Hack Attempts . | . . Triggered . | . . Disarmed . | . . Reprogrammed . | . . Reused . | . . Traps Extracted . | . . Installed . | . . Triggered . | . . Machines | -11 -10 ---------- Run | Yrd Mat Machines Disabled 3 | . 3 Max in Single Turn 1 | . 1 Machines Repaired . | . . Machines Dismantled . | . . Machines Sabotaged . | . . Overloaded Fab Kills . | . . Hacking | -11 -10 --------- Run | Yrd Mat Machines Accessed 2 | . 2 Terminals 2 | . 2 Fabricators . | . . Repair Stations . | . . Recycling Units . | . . Scanalyzers . | . . Garrison Access . | . . Total Hacks 4 | . 4 Successful 2 | . 2 Failed 2 | . 2 Catastrophic . | . . Database Lockouts . | . . Manual . | . . Terminals 4 | . 4 Fabricators . | . . Repair Stations . | . . Recycling Units . | . . Scanalyzers . | . . Garrison Access . | . . Terminal Hacks 2 | . 2 Record 1 | . 1 Robot Analysis 1 | . 1 Fabricator Hacks . | . . Repair Station Hacks . | . . Recycling Unit Hacks . | . . Scanalyzer . | . . Garrison Access Hacks . | . . Unauthorized Hacks . | . . Terminals . | . . Fabricators . | . . Repair Stations . | . . Recycling Units . | . . Scanalyzers . | . . Garrison Access . | . . Data Cores Recovered . | . . Used . | . . Hacking Detections 1 | . 1 Full Trace Events 1 | . 1 Feedback Events . | . . Feedback Blocked . | . . Robot Schematics Acquired . | . . Robots Built . | . . Authchips . | . . Time . | . . Total Robot Build Rating . | . . Part Schematics Acquired . | . . Parts Built . | . . Authchips . | . . Time . | . . Total Part Build Rating . | . . Parts Repaired . | . . Time . | . . Parts Recycled . | . . Recycled Matter . | . . Retrieved Matter . | . . Retrieved Components . | . . Parts Scanalyzed . | . . Part Schematics Acquired . | . . Parts Damaged . | . . Bothacking | -11 -10 ------------ Run | Yrd Mat Used RIF Installer . | . . Robots Hacked . | . . Non-combat . | . . Combat . | . . Robot Hacks Applied . | . . Relay Couplers Released . | . . Fabnet Peak Effective % . | . . Robots Rewired . | . . Allies Hacked . | . . Hacks Repelled . | . . Allies | -11 -10 -------- Run | Yrd Mat Total Allies . | . . Largest Group . | . . Highest-Rated Group . | . . Highest-Rated Ally . | . . Total Orders . | . . Ally Attacks . | . . Total Damage . | . . Kills . | . . Allies Corrupted . | . . Allies Melted . | . . Intel | -11 -10 ------- Run | Yrd Mat Robot Analysis Total 1 | . 1 Derelict Logs Recovered . | . . Drone Launches . | . . Drone Recoveries . | . . Exploration | -11 -10 ------------- Run | Yrd Mat Turns Passed 1864 | 60 1804 Spaces Moved 492 | 39 453 Core 31 | 19 12 Treads 266 | 20 246 Legs 115 | . 115 Wheels . | . . Hover . | . . Flight 80 | . 80 Fastest Speed 50 | 50 120 Average Speed 306 | 106 323 Slowest Speed 837 | 160 837 Overloaded Moves . | . . Propulsion Burnouts . | . . Robots Hopped . | . . Cave-ins Triggered . | . . Exploration Rate (%) 30 | 3 57 Regions Visited 1 Branch Regions . Pre-discovered Areas . | . . Known Exits Taken . | . . Unknown Exits Taken 1 | 1 . Scrap Searched . | . . Spaces Dug . | . . Terrain Destroyed . | . . Melee . | . . Projectile . | . . AOE . | . . Terrain Rammed . | . . Walls Destroyed . | . . Machines Disabled . | . . Actions | -11 -10 --------- Run | Yrd Mat Total 684 | 55 629 Wait 7 | . 7 Move 491 | 38 453 Hop . | . . Pick Up 28 | 6 22 Fast Attach 2 | 2 . Attach 13 | 4 9 Detach . | . . Swap 10 | 2 8 Drop 13 | 2 11 Fire 120 | 1 119 Melee . | . . Ram . | . . Kick . | . . Crush . | . . Escape Stasis . | . . Rewire . | . . Trap . | . . Miscellaneous . | . . Route ------- -11/Scrapyard -10/Materials (discovered 2 exits: [*Mat] / [*Min]) History --------- Turn | Location | Event 28 | -11/Scrapyard | Discovered new exit (range 16) 61 | -11/Scrapyard | Entered Materials 243 | -10/Materials | Discovered new exit (range 5) 313 | -10/Materials | Build established: Mutant 621 | -10/Materials | Core integrity fell below 50% 886 | -10/Materials | Build established: Scavenger-Mutant 922 | -10/Materials | Core integrity fell below 20% 1575 | -10/Materials | Discovered new exit (range 15) 1866 | -10/Materials | Core destroyed Last Messages --------------- Channel. 01832_ K-01 Serf collects debris. 01844_ Lgt. Nuclear Core melted. 01844_ G-47 Trooper destroyed. 01849_ K-01 Serf cleans the Purification Channel. 01851_ R-06 Scavenger collects Particle Gun. 01852_ G-34 Mercenary overheating. 01854_ G-34 Mercenary critical meltdown. [Achievement: It's Just You] 01856_ Destroyed Com. Wheel. 01856_ K-01 Serf cleans the Purification Channel. 01861_ Power failure, Ion Engine shutdown. 01862_ Overheating: System interference. 01862_ Targeting Computer temporarily disabled. 01862_ Purification Channel disabled. 01862_ K-01 Serf collects debris. 01863_ Overheating: Matter decay (-62). 01866_ Overheating: Core damaged (-35). Map ----- +----------------------------------------------------+ | * % ######### #### ### #?????? | | * #??????####+###### #?#######?????? | | #??????# % * ## #?????????????? | | %% #????### "" [ ## #?????????????? | | #####????#"" """ *! ## #?????????????? | | #????????#"" """ ## #?????????????? | | #????????#"T ## #?????????????? | | #????????#"" """ ## #?????????????? | | #????????#"" """ ## ##???#######??? | | #????????### """ # ##### #??? | | #??????????# # r #??? | | #??????????########## #??? | | #???????????????????# #??? | | #???????????????????# ##### #??? | | #???????????????????## ##???## ##??? | | #????????????????????# #?????# #???? | | !#????????????????????# #?????# #???? | | #????????????????????#% ####### #???? | | #????????????????????# # # #???? | | #????????????????????# % # == # #???? | | #????????????????????# # # #???? | | #????????????????????# #"" + #???? | | #????????????????????# #"T # #???? | | #????????????????????# #"" =# #???? | | #????????????????????#k # # #???? | | #????????????????????# @####### #???? | | ?????????????????????# #?????# #???? | | ?????????????????????# #?????# #???? | | ?????????????????????# ####### #???? | | ????????????????####### #???? | | ????????????????# # #???? | | ????????????????# """ + " """"" #???? | | ????????????????# """ # """""""" #???? | | ????????????????# """ # k""" """ #???? | | ????????????????# # #???? | | ????????????????# """ + #???? | | ????????????????# """ # #???? | | ????????????????# """ ###+####### < #???? | | ????????????????# # ## #???? | | ????????????????# #""" ######???? | | ????????????????# #""" #????????? | | ????????????????# #""" #????????? | | ????????????????####### #????????? | | ??????????????????????# #????????? | | ??????????????????????# "Y" #????????? | | ??????????????????????# """ #????????? | | ??????????????????????# #????????? | | ??????????????????????##########????????? | | | | | +----------------------------------------------------+ Best States ------------- Heat Dissipation 25 Energy Generation 10 Energy Capacity 450 Matter Stores 300 Matter Capacity 300 Sight Range 16 Terrain Scan Density 10 Evasion (%) 55 Targeting Accuracy 5 Recoil Reduction 2 Item Schematics ----------------- None Robot Schematics ------------------ None Fabricated ------------ Nothing Alien Tech Used ----------------- None Achievements -------------- It's Just You Challenges ------------ None Game ------ Seed FluxLegDetonator Manual? 0 Play Time 00:13:26 Cumulative 3.0 hours Start 2024.08.08 @ 02:58:31 End 2024.08.08 @ 14:13:36 Sessions 3 Manual Loads 0 Difficulty Rogue Special Mode None Game No. 4 Rogue 4 Adventurer 0 Explorer 0 Win Type - Total 0 Types 0/0/0/0/0/0/0/0/0 Lore% 5 Gallery% 6 Achievement% 7 Wizard Run 0 Options --------- Layout 2 ASCII 0 Keyboard 0 Movement Mouse Keybinds 0 Fullscreen 2 Font 24/Smallcaps Map View 50x44 Zoom Use 0% Tactical HUD 1 Map Filters NONE Filters NONE Steam 1 RUN: 2e5c9090-3d2e-466e-b1a7-aea75ca1ac39